{"text_format":"3","workbook":"xlsx","n_sheets":7,"sheets":["Lunes","Martes","Miércoles","Jueves","Viernes","Sábado","Domingo"],"not_rendered":{"defined_names":24},"read":"whole","date_system":"1900"}

{"sheet":"Lunes","index":0,"n_rows":10,"n_cols":13,"rows_kept":10,"merged":[[1,1,2,1],[1,2,1,10],[1,11,1,12],[2,2,2,10],[2,11,2,12]]}
[null,"PLAN DE TURNOS"]
[null,"LUNES","Para la semana de: ",{"$nulls":8},"FECHA"]
[null,null,"Nombre del departamento: ",{"$nulls":8},"DEPARTAMENTO"]
[null,"Nombre del empleado","7:00 a. m.","8:00 a. m.","9:00 a. m.","10:00 a. m.","11:00 a. m.","12:00 a. m.","1:00 p. m.","2:00 p. m.","3:00 p. m.","¿Incapacidad?","TOTAL"]
[null,"Larissa S","gerente","gerente","gerente","gerente","gerente","gerente","gerente","gerente","gerente",null,{"$f":"IFERROR(COUNTIF(Lunes[[#This Row],[7:00 a. m.]:[3:00 p. m.]],\"*\"),\"\")","v":9}]
[null,"Guillermo R",null,"cajero","cajero","cajero","cajero",{"$nulls":5},{"$f":"IFERROR(COUNTIF(Lunes[[#This Row],[7:00 a. m.]:[3:00 p. m.]],\"*\"),\"\")","v":4}]
[null,"Jeremías E",null,"recepción","recepción","recepción","recepción ","recepción","recepción","recepción",null,null,{"$f":"IFERROR(COUNTIF(Lunes[[#This Row],[7:00 a. m.]:[3:00 p. m.]],\"*\"),\"\")","v":7}]
[null,"Yago C",null,"recepción","recepción","recepción","recepción ","recepción","recepción","recepción",null,null,{"$f":"IFERROR(COUNTIF(Lunes[[#This Row],[7:00 a. m.]:[3:00 p. m.]],\"*\"),\"\")","v":7}]
[null,"Nicolás P",{"$nulls":10},{"$f":"IFERROR(COUNTIF(Lunes[[#This Row],[7:00 a. m.]:[3:00 p. m.]],\"*\"),\"\")","v":0}]
[null,"Marina R",{"$nulls":5},"cajero","cajero","cajero","cajero",null,{"$f":"IFERROR(COUNTIF(Lunes[[#This Row],[7:00 a. m.]:[3:00 p. m.]],\"*\"),\"\")","v":4}]

{"sheet":"Martes","index":1,"n_rows":10,"n_cols":13,"rows_kept":10,"merged":[[1,1,2,1],[1,2,1,10],[1,11,1,12],[2,2,2,10],[2,11,2,12]]}
[null,{"$f":"Título_PLAN_TURNOS","v":"PLAN DE TURNOS"}]
[null,"MARTES","Para la semana de: ",{"$nulls":8},{"$f":"FECHA","v":"FECHA"}]
[null,null,"Nombre del departamento: ",{"$nulls":8},{"$f":"DEPARTAMENTO","v":"DEPARTAMENTO"}]
[null,"Nombre del empleado","7:00 a. m.","8:00 a. m.","9:00 a. m.","10:00 a. m.","11:00 a. m.","12:00 a. m.","1:00 p. m.","2:00 p. m.","3:00 p. m.","¿Incapacidad?","TOTAL"]
[null,"Larissa S","gerente","gerente","gerente","gerente","gerente","gerente","gerente","gerente","gerente",null,{"$f":"IFERROR(COUNTIF(Martes[[#This Row],[7:00 a. m.]:[3:00 p. m.]],\"*\"),\"\")","v":9}]
[null,"Guillermo R",null,"cajero","cajero","cajero","cajero",{"$nulls":5},{"$f":"IFERROR(COUNTIF(Martes[[#This Row],[7:00 a. m.]:[3:00 p. m.]],\"*\"),\"\")","v":4}]
[null,"Jeremías E",null,"recepción","recepción","recepción","recepción ","recepción","recepción","recepción",null,null,{"$f":"IFERROR(COUNTIF(Martes[[#This Row],[7:00 a. m.]:[3:00 p. m.]],\"*\"),\"\")","v":7}]
[null,"Yago C",null,"recepción","recepción","recepción","recepción ","recepción","recepción","recepción",null,null,{"$f":"IFERROR(COUNTIF(Martes[[#This Row],[7:00 a. m.]:[3:00 p. m.]],\"*\"),\"\")","v":7}]
[null,"Nicolás P",{"$nulls":9},"Incapacidad",{"$f":"IFERROR(COUNTIF(Martes[[#This Row],[7:00 a. m.]:[3:00 p. m.]],\"*\"),\"\")","v":0}]
[null,"Marina R",{"$nulls":5},"cajero","cajero","cajero","cajero",null,{"$f":"IFERROR(COUNTIF(Martes[[#This Row],[7:00 a. m.]:[3:00 p. m.]],\"*\"),\"\")","v":4}]

{"sheet":"Miércoles","index":2,"n_rows":10,"n_cols":13,"rows_kept":10,"merged":[[1,1,2,1],[1,2,1,10],[1,11,1,12],[2,2,2,10],[2,11,2,12]]}
[null,{"$f":"Título_PLAN_TURNOS","v":"PLAN DE TURNOS"}]
[null,"MIÉRCOLES","Para la semana de: ",{"$nulls":8},{"$f":"FECHA","v":"FECHA"}]
[null,null,"Nombre del departamento: ",{"$nulls":8},{"$f":"DEPARTAMENTO","v":"DEPARTAMENTO"}]
[null,"Nombre del empleado","7:00 a. m.","8:00 a. m.","9:00 a. m.","10:00 a. m.","11:00 a. m.","12:00 a. m.","1:00 p. m.","2:00 p. m.","3:00 p. m.","¿Incapacidad?","TOTAL"]
[null,"Larissa S","gerente","gerente","gerente","gerente","gerente","gerente","gerente","gerente","gerente",null,{"$f":"IFERROR(COUNTIF(Miércoles[[#This Row],[7:00 a. m.]:[3:00 p. m.]],\"*\"),\"\")","v":9}]
[null,"Guillermo R",null,"cajero","cajero","cajero","cajero",{"$nulls":5},{"$f":"IFERROR(COUNTIF(Miércoles[[#This Row],[7:00 a. m.]:[3:00 p. m.]],\"*\"),\"\")","v":4}]
[null,"Jeremías E",null,"recepción","recepción","recepción","recepción ","recepción","recepción","recepción",null,null,{"$f":"IFERROR(COUNTIF(Miércoles[[#This Row],[7:00 a. m.]:[3:00 p. m.]],\"*\"),\"\")","v":7}]
[null,"Yago C",null,"recepción","recepción","recepción","recepción ","recepción","recepción","recepción",null,null,{"$f":"IFERROR(COUNTIF(Miércoles[[#This Row],[7:00 a. m.]:[3:00 p. m.]],\"*\"),\"\")","v":7}]
[null,"Nicolás P",{"$nulls":9},"Incapacidad",{"$f":"IFERROR(COUNTIF(Miércoles[[#This Row],[7:00 a. m.]:[3:00 p. m.]],\"*\"),\"\")","v":0}]
[null,"Marina R",{"$nulls":5},"cajero","cajero","cajero","cajero",null,{"$f":"IFERROR(COUNTIF(Miércoles[[#This Row],[7:00 a. m.]:[3:00 p. m.]],\"*\"),\"\")","v":4}]

{"sheet":"Jueves","index":3,"n_rows":10,"n_cols":13,"rows_kept":10,"merged":[[1,1,2,1],[1,2,1,10],[1,11,1,12],[2,2,2,10],[2,11,2,12]]}
[null,{"$f":"Título_PLAN_TURNOS","v":"PLAN DE TURNOS"}]
[null,"JUEVES","Para la semana de: ",{"$nulls":8},{"$f":"FECHA","v":"FECHA"}]
[null,null,"Nombre del departamento: ",{"$nulls":8},{"$f":"DEPARTAMENTO","v":"DEPARTAMENTO"}]
[null,"Nombre del empleado","7:00 a. m.","8:00 a. m.","9:00 a. m.","10:00 a. m.","11:00 a. m.","12:00 a. m.","1:00 p. m.","2:00 p. m.","3:00 p. m.","¿Incapacidad?","TOTAL"]
[null,"Larissa S","gerente","gerente","gerente","gerente","gerente","gerente","gerente","gerente","gerente",null,{"$f":"IFERROR(COUNTIF(Jueves[[#This Row],[7:00 a. m.]:[3:00 p. m.]],\"*\"),\"\")","v":9}]
[null,"Guillermo R",null,"cajero","cajero","cajero","cajero",{"$nulls":5},{"$f":"IFERROR(COUNTIF(Jueves[[#This Row],[7:00 a. m.]:[3:00 p. m.]],\"*\"),\"\")","v":4}]
[null,"Jeremías E",null,"recepción","recepción","recepción","recepción ","recepción","recepción","recepción",null,null,{"$f":"IFERROR(COUNTIF(Jueves[[#This Row],[7:00 a. m.]:[3:00 p. m.]],\"*\"),\"\")","v":7}]
[null,"Yago C",null,"recepción","recepción","recepción","recepción ","recepción","recepción","recepción",null,null,{"$f":"IFERROR(COUNTIF(Jueves[[#This Row],[7:00 a. m.]:[3:00 p. m.]],\"*\"),\"\")","v":7}]
[null,"Nicolás P",{"$nulls":9},"Incapacidad",{"$f":"IFERROR(COUNTIF(Jueves[[#This Row],[7:00 a. m.]:[3:00 p. m.]],\"*\"),\"\")","v":0}]
[null,"Marina R",{"$nulls":5},"cajero","cajero","cajero","cajero",null,{"$f":"IFERROR(COUNTIF(Jueves[[#This Row],[7:00 a. m.]:[3:00 p. m.]],\"*\"),\"\")","v":4}]

{"sheet":"Viernes","index":4,"n_rows":10,"n_cols":13,"rows_kept":10,"merged":[[1,1,2,1],[1,2,1,10],[1,11,1,12],[2,2,2,10],[2,11,2,12]]}
[null,{"$f":"Título_PLAN_TURNOS","v":"PLAN DE TURNOS"}]
[null,"VIERNES","Para la semana de: ",{"$nulls":8},{"$f":"FECHA","v":"FECHA"}]
[null,null,"Nombre del departamento: ",{"$nulls":8},{"$f":"DEPARTAMENTO","v":"DEPARTAMENTO"}]
[null,"Nombre del empleado","7:00 a. m.","8:00 a. m.","9:00 a. m.","10:00 a. m.","11:00 a. m.","12:00 a. m.","1:00 p. m.","2:00 p. m.","3:00 p. m.","¿Incapacidad?","TOTAL"]
[null,"Larissa S","gerente","gerente","gerente","gerente","gerente","gerente","gerente","gerente","gerente",null,{"$f":"IFERROR(COUNTIF(Viernes[[#This Row],[7:00 a. m.]:[3:00 p. m.]],\"*\"),\"\")","v":9}]
[null,"Guillermo R",null,"cajero","cajero","cajero","cajero",{"$nulls":5},{"$f":"IFERROR(COUNTIF(Viernes[[#This Row],[7:00 a. m.]:[3:00 p. m.]],\"*\"),\"\")","v":4}]
[null,"Jeremías E",null,"recepción","recepción","recepción","recepción ","recepción","recepción","recepción",null,null,{"$f":"IFERROR(COUNTIF(Viernes[[#This Row],[7:00 a. m.]:[3:00 p. m.]],\"*\"),\"\")","v":7}]
[null,"Yago C",null,"recepción","recepción","recepción","recepción ","recepción","recepción","recepción",null,null,{"$f":"IFERROR(COUNTIF(Viernes[[#This Row],[7:00 a. m.]:[3:00 p. m.]],\"*\"),\"\")","v":7}]
[null,"Nicolás P",{"$nulls":9},"Incapacidad",{"$f":"IFERROR(COUNTIF(Viernes[[#This Row],[7:00 a. m.]:[3:00 p. m.]],\"*\"),\"\")","v":0}]
[null,"Marina R",{"$nulls":5},"cajero","cajero","cajero","cajero",null,{"$f":"IFERROR(COUNTIF(Viernes[[#This Row],[7:00 a. m.]:[3:00 p. m.]],\"*\"),\"\")","v":4}]

{"sheet":"Sábado","index":5,"n_rows":10,"n_cols":13,"rows_kept":10,"merged":[[1,1,2,1],[1,2,1,10],[1,11,1,12],[2,2,2,10],[2,11,2,12]]}
[null,{"$f":"Título_PLAN_TURNOS","v":"PLAN DE TURNOS"}]
[null,"SÁBADO","Para la semana de: ",{"$nulls":8},{"$f":"FECHA","v":"FECHA"}]
[null,null,"Nombre del departamento: ",{"$nulls":8},{"$f":"DEPARTAMENTO","v":"DEPARTAMENTO"}]
[null,"Nombre del empleado","7:00 a. m.","8:00 a. m.","9:00 a. m.","10:00 a. m.","11:00 a. m.","12:00 a. m.","1:00 p. m.","2:00 p. m.","3:00 p. m.","¿Incapacidad?","TOTAL"]
[null,"Larissa S","gerente","gerente","gerente","gerente","gerente","gerente","gerente","gerente","gerente",null,{"$f":"IFERROR(COUNTIF(Sábado[[#This Row],[7:00 a. m.]:[3:00 p. m.]],\"*\"),\"\")","v":9}]
[null,"Guillermo R",null,"cajero","cajero","cajero","cajero",{"$nulls":5},{"$f":"IFERROR(COUNTIF(Sábado[[#This Row],[7:00 a. m.]:[3:00 p. m.]],\"*\"),\"\")","v":4}]
[null,"Jeremías E",null,"recepción","recepción","recepción","recepción ","recepción","recepción","recepción",null,null,{"$f":"IFERROR(COUNTIF(Sábado[[#This Row],[7:00 a. m.]:[3:00 p. m.]],\"*\"),\"\")","v":7}]
[null,"Yago C",null,"recepción","recepción","recepción","recepción ","recepción","recepción","recepción",null,null,{"$f":"IFERROR(COUNTIF(Sábado[[#This Row],[7:00 a. m.]:[3:00 p. m.]],\"*\"),\"\")","v":7}]
[null,"Nicolás P",{"$nulls":9},"Incapacidad",{"$f":"IFERROR(COUNTIF(Sábado[[#This Row],[7:00 a. m.]:[3:00 p. m.]],\"*\"),\"\")","v":0}]
[null,"Marina R",{"$nulls":5},"cajero","cajero","cajero","cajero",null,{"$f":"IFERROR(COUNTIF(Sábado[[#This Row],[7:00 a. m.]:[3:00 p. m.]],\"*\"),\"\")","v":4}]

{"sheet":"Domingo","index":6,"n_rows":10,"n_cols":13,"rows_kept":10,"merged":[[1,1,2,1],[1,2,1,10],[1,11,1,12],[2,2,2,10],[2,11,2,12]]}
[null,{"$f":"Título_PLAN_TURNOS","v":"PLAN DE TURNOS"}]
[null,"DOMINGO","Para la semana de: ",{"$nulls":8},{"$f":"FECHA","v":"FECHA"}]
[null,null,"Nombre del departamento: ",{"$nulls":8},{"$f":"DEPARTAMENTO","v":"DEPARTAMENTO"}]
[null,"Nombre del empleado","7:00 a. m.","8:00 a. m.","9:00 a. m.","10:00 a. m.","11:00 a. m.","12:00 a. m.","1:00 p. m.","2:00 p. m.","3:00 p. m.","¿Incapacidad?","TOTAL"]
[null,"Larissa S","gerente","gerente","gerente","gerente","gerente","gerente","gerente","gerente","gerente",null,{"$f":"IFERROR(COUNTIF(Domingo[[#This Row],[7:00 a. m.]:[3:00 p. m.]],\"*\"),\"\")","v":9}]
[null,"Guillermo R",null,"cajero","cajero","cajero","cajero",{"$nulls":5},{"$f":"IFERROR(COUNTIF(Domingo[[#This Row],[7:00 a. m.]:[3:00 p. m.]],\"*\"),\"\")","v":4}]
[null,"Jeremías E",null,"recepción","recepción","recepción","recepción ","recepción","recepción","recepción",null,null,{"$f":"IFERROR(COUNTIF(Domingo[[#This Row],[7:00 a. m.]:[3:00 p. m.]],\"*\"),\"\")","v":7}]
[null,"Yago C",null,"recepción","recepción","recepción","recepción ","recepción","recepción","recepción",null,null,{"$f":"IFERROR(COUNTIF(Domingo[[#This Row],[7:00 a. m.]:[3:00 p. m.]],\"*\"),\"\")","v":7}]
[null,"Nicolás P",{"$nulls":9},"Incapacidad",{"$f":"IFERROR(COUNTIF(Domingo[[#This Row],[7:00 a. m.]:[3:00 p. m.]],\"*\"),\"\")","v":0}]
[null,"Marina R",{"$nulls":5},"cajero","cajero","cajero","cajero",null,{"$f":"IFERROR(COUNTIF(Domingo[[#This Row],[7:00 a. m.]:[3:00 p. m.]],\"*\"),\"\")","v":4}]